bitfinex-derivatives/quotes_BNBF0:USTF0_20250309
["timestamp","ask_amount","ask_price","bid_price","bid_amount"]
[1741552150134,1.41219449,560.18,560.01,0.35713647]
[1741552150532,1.41219449,560.17,560.01,0.35713647]
[1741552150832,2.87290918,560.16,560.01,0.35713647]
[1741552151037,2.87290918,560.15,560.01,0.35713647]
[1741552151232,1.41219449,560.17,560.01,0.35713647]
[1741552151438,1.41219449,560.14,560.01,0.35713647]
[1741552151938,1.41219449,560.13,560.01,0.35713647]
[1741552153039,4.28523478,560.12,560.01,0.35713647]
[1741552153237,2.87304029,560.11,560.01,0.35713647]
[1741552153433,2.87310735,560.1,560.01,0.35713647]
[1741552153636,1.78510709,560.09,560.01,0.35713647]
[1741552153837,1.41219449,560.08,560.01,0.35713647]
[1741552154434,1.41219449,560.07,560.01,0.35713647]
[1741552155340,1.41219449,560.06,560.01,0.35713647]
[1741552155939,1.41219449,560.05,560.01,0.35713647]
[1741552156131,1.41219449,560.04,560.01,0.35713647]
[1741552156533,0.31080725,560.05,560.01,0.35713647]
[1741552157940,2.87340584,560.04,559.42,1.32985219]
[1741552158140,1.41194763,560.03,559.43,0.65442378]
[1741552158337,1.41194763,560.03,559.44,0.29691704]
[1741552158536,1.41194763,560.03,559.45,0.35749396]
[1741552158742,1.41194763,560.02,559.46,0.29692205]
[1741552159347,1.41194763,560.01,559.46,0.29692205]
[1741552159843,1.41194763,560.01,559.47,0.29694146]
[1741552160143,1.41194763,560.0,559.48,0.65441625]
[1741552160342,1.41194763,560.0,559.49,0.65440986]
[1741552160642,1.41194763,559.99,559.5,0.35746201]
[1741552161441,2.61994763,559.98,559.5,0.35746201]
[1741552161639,2.90694763,559.98,559.51,0.29702983]
[1741552162043,1.495,559.98,559.51,0.29702983]
[1741552162244,1.495,559.98,559.52,0.35744924]
[1741552162545,1.495,559.98,559.53,0.29702983]
[1741552162745,1.495,559.98,559.54,0.35743646]
[1741552162945,1.495,559.98,559.55,0.29702983]
[1741552163547,1.495,559.98,559.56,0.35742369]
[1741552163740,1.495,559.98,559.57,0.29702983]
[1741552163947,1.495,559.98,559.58,0.35741091]
[1741552164146,1.495,559.98,559.59,0.29702983]
[1741552164341,1.495,559.98,559.6,0.35739814]
[1741552164342,0.31080447,559.97,559.6,0.35739814]
[1741552164546,0.31080447,559.97,559.61,0.29702983]
[1741552164748,0.31080447,559.97,559.62,0.35738536]
[1741552164944,0.31080447,559.97,559.63,0.29702983]
[1741552165145,0.31080447,559.97,559.64,0.654371]
[1741552165340,0.31080447,559.97,559.65,0.65436145]
[1741552165543,0.31080447,559.97,559.66,0.35735982]
[1741552166948,1.495,559.98,559.66,0.35735982]
[1741552167748,1.495,559.98,559.67,0.29699066]
[1741552168044,1.495,559.98,559.68,0.35734705]
[1741552168347,0.3107906,559.97,559.69,0.29699066]
[1741552168545,0.3107906,559.97,559.7,0.35733428]
[1741552168745,0.3107906,559.97,559.71,0.29698463]
[1741552168941,0.3107906,559.97,559.72,0.35732151]
[1741552169146,0.3107906,559.97,559.73,0.29698463]
[1741552169349,0.3107906,559.97,559.74,0.35730875]
[1741552169548,0.3107906,559.97,559.75,0.29698463]
[1741552169847,0.3107906,559.97,559.76,0.35729598]
[1741552170047,1.495,559.98,559.77,0.29698463]
[1741552170243,1.495,559.98,559.77,0.65427423]
[1741552170448,1.495,559.98,559.78,0.29698463]
[1741552171445,0.31077533,559.97,559.78,0.29698463]
[1741552172544,0.31077533,559.97,559.77,0.3572896]
[1741552172745,0.31077533,559.97,559.79,0.35727683]
[1741552172950,1.495,559.98,559.79,0.35727683]
[1741552173651,1.495,559.98,559.8,0.29695254]
[1741552174053,1.495,559.98,559.81,0.6541945]
[1741552174245,1.495,559.98,559.82,0.65418811]
[1741552174551,1.208,559.98,559.83,0.65418173]
[1741552174752,1.208,559.98,559.84,0.35724492]
[1741552175550,1.208,559.98,559.85,0.29692261]
[1741552175752,1.208,559.98,559.86,0.35723216]
[1741552180246,1.208,559.98,559.87,0.29691135]
[1741552180449,1.208,559.98,559.88,0.3572194]
[1741552180849,1.208,559.98,559.89,0.29689225]
[1741552183059,1.208,559.98,559.9,0.35720664]
[1741552184257,1.208,559.98,559.91,0.29684644]
[1741552184654,1.208,559.98,559.92,0.35719388]
[1741552185053,1.208,559.98,559.93,0.29683836]
[1741552185357,1.208,559.98,559.94,0.35718112]
[1741552189559,1.208,559.98,559.95,0.29686074]
[1741552191564,0.31070735,560.12,559.95,0.29686074]
[1741552194068,0.287,560.3,559.95,0.29686074]
[1741552194268,0.31061999,560.12,559.95,0.29686074]
[1741552194470,0.31061999,560.12,559.94,0.35718112]
[1741552194669,0.287,560.3,559.95,0.29685158]
[1741552194870,0.941,560.29,559.95,0.29685158]
[1741552195468,0.31066436,560.28,559.95,0.29685158]
[1741552195770,0.31066436,560.28,559.96,0.29682116]
[1741552196168,0.31066436,560.28,559.97,0.29682116]
[1741552196365,0.31066436,560.28,559.95,0.29682116]
[1741552196569,0.31066436,560.28,559.96,0.29682116]
[1741552196765,0.31066436,560.28,559.95,0.29682116]
[1741552196970,0.941,560.29,559.95,0.29682116]
[1741552197165,0.31069487,560.27,559.95,0.29682116]
[1741552199977,0.941,560.29,559.95,0.29682116]
[1741552200178,0.31069487,560.26,559.95,0.29682116]
[1741552201679,0.941,560.29,559.95,0.29682116]
[1741552201977,0.31069487,560.25,559.94,0.35718112]
[1741552202180,0.31069487,560.25,559.95,0.2969168]
[1741552202382,1.40681676,560.24,559.95,0.2969168]
[1741552202580,1.40681676,560.24,559.94,0.35718112]
[1741552202981,1.40681676,560.23,559.94,0.35718112]
[1741552203381,2.86947556,560.22,559.94,0.35718112]
[1741552203577,1.40681676,560.23,559.94,0.35718112]
[1741552203777,1.40681676,560.21,559.94,0.35718112]
[1741552203976,1.40681676,560.2,559.94,0.35718112]
[1741552204182,1.40681676,560.2,559.95,0.29691597]
[1741552204377,1.71756157,560.2,559.95,0.29691597]
[1741552204585,0.31074481,560.2,559.95,0.29691597]
[1741552205982,0.941,560.29,559.94,0.35718112]
[1741552206182,0.941,560.29,559.95,0.29689997]
[1741552206377,0.941,560.29,559.96,0.29686259]
[1741552206585,0.941,560.29,559.94,0.35718112]
[1741552206784,0.941,560.29,559.95,0.29688481]
[1741552207083,1.40778587,560.28,559.95,0.29688481]
[1741552207285,1.718453,560.28,559.95,0.29688481]
[1741552208084,1.40778587,560.27,559.96,0.29690032]
[1741552208279,1.40778587,560.27,559.95,0.29690032]
[1741552208476,1.40778587,560.27,559.94,0.35718112]
[1741552208678,1.40778587,560.26,559.95,0.29689995]
[1741552209478,1.40778587,560.25,559.95,0.29689995]
[1741552210086,1.40778587,560.24,559.95,0.29689995]
[1741552210378,1.71845855,560.24,559.95,0.29689995]
[1741552210882,0.31067268,560.24,559.95,0.29689995]
[1741552211477,1.40798364,560.23,559.95,0.29689995]
[1741552211681,1.40798364,560.23,559.94,0.35718112]
[1741552212081,1.40798364,560.22,559.94,0.35718112]
[1741552212781,1.40798364,560.21,559.94,0.35718112]
[1741552212986,1.71874232,560.21,559.94,0.35718112]
[1741552213186,1.40798364,560.2,559.94,0.35718112]
[1741552213889,1.40798364,560.19,559.94,0.35718112]
[1741552214383,1.40798364,560.18,559.94,0.35718112]
[1741552214782,1.40798364,560.17,559.94,0.35718112]
[1741552215287,0.941,560.29,559.94,0.35718112]
[1741552215483,0.31077533,560.16,559.94,0.35718112]
[1741552215688,4.59221087,560.28,559.94,0.35718112]
[1741552215887,11.12374839,560.27,559.94,0.35718112]
[1741552216081,7.46241783,560.26,559.94,0.35718112]
[1741552216286,7.46241783,560.25,559.94,0.35718112]
[1741552216487,7.46242825,560.24,559.94,0.35718112]
[1741552216687,2.87015827,560.23,559.94,0.35718112]
[1741552216887,2.87015827,560.22,559.94,0.35718112]
[1741552217083,2.87015827,560.21,559.94,0.35718112]
[1741552217289,2.87015827,560.2,559.94,0.35718112]
[1741552217590,2.87021354,560.19,559.94,0.35718112]
[1741552217792,3.66136615,560.2,559.94,0.35718112]
[1741552218091,3.66136615,560.18,559.94,0.35718112]
[1741552218492,1.40821775,560.17,559.94,0.35718112]
[1741552219087,1.40821775,560.16,559.94,0.35718112]
[1741552219785,1.40821775,560.15,559.94,0.35718112]
[1741552220184,2.87000786,560.14,559.94,0.35718112]
[1741552220383,2.87008566,560.13,559.94,0.35718112]
[1741552220591,1.78534483,560.12,559.94,0.35718112]
[1741552220790,3.66073443,560.13,559.94,0.35718112]
[1741552220991,1.40821775,560.11,559.94,0.35718112]
[1741552221492,1.40821775,560.1,559.94,0.35718112]
[1741552221887,2.8697858,560.09,559.94,0.35718112]
[1741552222087,2.8697858,560.08,559.94,0.35718112]
[1741552222291,2.8697858,560.07,559.42,1.32985219]
[1741552222484,2.8697858,560.06,559.43,0.65457879]
[1741552222690,2.8697858,560.05,559.44,0.29707205]
[1741552222988,2.8697858,560.04,559.44,0.29707205]
[1741552223284,2.87010934,560.03,559.44,0.29707205]
[1741552223489,2.87010934,560.02,559.44,0.29707205]
[1741552223690,2.87010934,560.01,559.44,0.29707205]
[1741552223890,2.87010934,560.0,559.44,0.29707205]
[1741552224088,2.86937492,559.99,559.43,0.35750674]
[1741552224391,1.40821775,559.98,559.44,0.29709053]
[1741552224593,1.40821775,559.98,559.45,0.35749396]
[1741552224893,4.27699999,559.97,559.46,0.29709053]
[1741552225091,1.40821775,559.97,559.47,0.35748118]
[1741552225286,1.40821775,559.97,559.48,0.29709053]
[1741552225483,1.40821775,559.96,559.48,0.65456532]
[1741552225788,0.902,559.95,559.49,0.29709053]
[1741552226185,1.40821775,559.94,559.49,0.29709053]
[1741552226990,1.40821775,559.93,559.49,0.29709053]
[1741552227193,1.40821775,559.93,559.5,0.35746201]
[1741552227394,1.40821775,559.93,559.51,0.29709053]
[1741552227694,0.902,559.95,559.52,0.65454102]
[1741552227994,0.902,559.95,559.53,0.29709178]
[1741552228589,0.31089194,559.94,559.53,0.29709178]
[1741552229387,0.31089194,559.94,559.52,0.35744924]
[1741552229592,0.31089194,559.94,559.53,0.2970698]
[1741552229791,0.31089194,559.94,559.54,0.35743646]
[1741552229993,0.902,559.95,559.55,0.2970698]
[1741552230395,0.31087389,559.93,559.55,0.2970698]
[1741552231501,0.31087389,559.93,559.55,0.65449987]
[1741552231800,0.31087389,559.93,559.56,0.2970698]
[1741552232794,0.31087389,559.93,559.57,0.3574173]
[1741552232999,0.902,559.95,559.58,0.2970507]
[1741552233302,0.31085584,559.92,559.59,0.35740452]
[1741552233500,0.31085584,559.92,559.6,0.2970507]
[1741552233695,0.31085584,559.92,559.6,0.65444884]
[1741552233896,0.31085584,559.92,559.61,0.2970507]
[1741552234801,0.31085584,559.92,559.6,0.35739814]
[1741552235002,0.31085584,559.92,559.61,0.29705137]
[1741552235202,0.31085584,559.92,559.62,0.35738536]
[1741552235403,0.31085584,559.92,559.63,0.29705137]
[1741552235603,0.31085584,559.92,559.64,0.35737259]
[1741552235804,0.31085584,559.92,559.65,0.29705137]
[1741552238303,0.31085584,559.92,559.66,0.29700924]
[1741552238504,0.31085584,559.92,559.65,0.29700924]
[1741552238704,0.29882647,559.92,559.66,0.65436906]
[1741552238901,0.29882647,559.92,559.67,0.29700924]
[1741552240203,0.29882647,559.92,559.66,0.35735982]
[1741552240509,0.29882647,559.92,559.67,0.29643436]
[1741552242205,0.902,559.95,559.68,0.35734705]
[1741552242403,0.902,559.95,559.69,0.29643436]
[1741552242603,0.902,559.95,559.7,0.35733428]
[1741552242801,0.902,559.95,559.71,0.29643436]
[1741552243402,0.31080031,559.94,559.71,0.29643436]
[1741552244001,0.31080031,559.94,559.72,0.35732151]
[1741552244203,0.31080031,559.94,559.73,0.29643436]
[1741552244710,0.31080031,559.94,559.73,0.65374949]
[1741552244909,0.31080031,559.94,559.74,0.29643436]
[1741552245108,0.902,559.95,559.74,0.29643436]
[1741552245305,0.31079615,559.93,559.74,0.29643436]
[1741552247313,0.31079615,559.93,559.75,0.29640565]
[1741552247620,0.31079615,559.93,559.76,0.29640565]
[1741552247812,0.31079615,559.93,559.74,0.29640565]
[1741552248015,0.902,559.95,559.75,0.65370801]
[1741552248212,0.902,559.95,559.76,0.65370163]
[1741552248413,0.902,559.95,559.77,0.65369525]
[1741552248721,0.902,559.95,559.78,0.29640565]
[1741552249219,0.902,559.95,559.78,0.65368886]
[1741552249419,0.902,559.95,559.79,0.29640565]
[1741552251315,0.902,559.95,559.8,0.35727045]
[1741552251915,0.288,560.02,559.8,0.35727045]
[1741552254520,0.288,560.02,559.81,0.29632894]
[1741552254717,0.288,560.02,559.82,0.35725768]
[1741552254921,0.288,560.02,559.83,0.29632894]
[1741552255117,0.288,560.02,559.84,0.35724492]
[1741552255320,0.288,560.02,559.85,0.29632894]
[1741552255522,0.288,560.02,559.85,0.65356748]
[1741552255723,0.288,560.02,559.86,0.29632894]
[1741552256224,0.288,560.02,559.87,0.35722578]
[1741552256527,0.288,560.02,559.88,0.29632894]
[1741552256720,0.288,560.02,559.89,0.35721302]
[1741552256921,0.288,560.02,559.9,0.29632894]
[1741552257118,0.288,560.02,559.91,0.35720026]
[1741552257728,0.288,560.02,559.92,0.2962853]
[1741552259627,0.288,560.02,559.93,0.3571875]
[1741552259821,0.288,560.02,559.94,0.2962853]
[1741552260026,0.288,560.02,559.93,0.3571875]
[1741552260527,0.288,560.02,559.94,0.29628354]
[1741552261922,0.288,560.02,559.93,0.3571875]
[1741552265533,1.48574203,560.17,559.93,0.3571875]
[1741552266032,1.175,560.17,559.93,0.3571875]
[1741552266433,0.31077949,560.16,559.93,0.3571875]
[1741552268433,0.31077949,560.16,559.94,0.29630226]
[1741552268835,0.31077949,560.16,559.93,0.3571875]
[1741552269030,0.288,560.28,559.93,0.3571875]
[1741552269437,0.3107129,560.15,559.94,0.29628852]
[1741552269629,0.288,560.28,559.94,0.35718112]
[1741552269835,0.288,560.28,559.95,0.29625544]
[1741552270036,0.288,560.28,559.96,0.35716836]
[1741552270436,0.31062276,560.27,559.96,0.35716836]
[1741552271930,1.40300563,560.26,559.96,0.35716836]
[1741552272534,0.31062276,560.27,559.96,0.35716836]
[1741552272535,1.40300563,560.25,559.96,0.35716836]
[1741552273232,0.31062276,560.27,559.96,0.35716836]
[1741552273540,1.40371196,560.26,559.96,0.35716836]
[1741552274434,0.31062276,560.27,559.96,0.35716836]
[1741552275141,0.288,560.28,559.96,0.35716836]
[1741552275337,0.31075729,560.26,559.96,0.35716836]
[1741552281043,1.254,560.31,559.96,0.35716836]
[1741552281341,0.31079337,560.25,559.96,0.35716836]
[1741552281737,0.31079337,560.25,559.97,0.29611755]
[1741552282743,0.31079337,560.25,559.98,0.35715561]
[1741552282941,0.31079337,560.25,559.99,0.29601319]
[1741552283146,0.31079337,560.25,560.0,0.35714285]
[1741552283342,0.31079337,560.25,560.01,0.29601319]
[1741552283545,0.31079337,560.25,560.02,0.3571301]
[1741552283747,0.31079337,560.25,560.03,0.29601319]
[1741552284044,0.31079337,560.25,560.04,0.35711734]
[1741552284250,0.31079337,560.25,560.05,0.29601319]
[1741552284447,0.31079337,560.25,560.06,0.35710459]
[1741552284648,0.31079337,560.25,560.07,0.29601319]
[1741552284843,0.31079337,560.25,560.08,0.35709184]
[1741552285047,0.31079337,560.25,560.09,0.29601319]
[1741552285247,0.31079337,560.25,560.1,0.35707909]
[1741552287146,1.254,560.31,560.1,0.35707909]
[1741552287451,1.254,560.31,560.11,0.29607024]
[1741552287652,1.254,560.31,560.12,0.35706634]
[1741552287953,1.254,560.31,560.13,0.29607024]
[1741552288149,1.254,560.31,560.14,0.35705359]
[1741552288350,1.254,560.31,560.15,0.29607024]
[1741552289045,1.254,560.31,560.16,0.35704084]
[1741552289250,1.254,560.31,560.17,0.29607024]
[1741552289452,1.254,560.31,560.18,0.35702809]
[1741552289651,1.254,560.31,560.19,0.29590157]
[1741552289852,1.254,560.31,560.19,0.65292329]
[1741552290052,1.254,560.31,560.2,0.29590157]
[1741552290747,1.254,560.31,560.19,0.35702172]
[1741552290952,1.254,560.31,560.2,0.29609]
[1741552291653,1.254,560.31,560.19,0.35702172]
[1741552293155,0.288,560.36,560.19,0.35702172]
[1741552293950,0.288,560.36,560.2,0.29606001]
[1741552294155,0.31058672,560.35,560.2,0.29606001]
[1741552294650,0.31058672,560.35,560.19,0.35702172]
[1741552296157,0.288,560.36,560.19,0.35702172]
[1741552297358,0.31059781,560.35,560.19,0.35702172]
[1741552299158,0.288,560.36,560.19,0.35702172]
[1741552300359,0.31064495,560.35,560.19,0.35702172]
[1741552305162,1.40521716,560.53,560.19,0.35702172]
[1741552305956,1.40521716,560.52,560.19,0.35702172]
[1741552306359,1.71589122,560.52,560.19,0.35702172]
[1741552306563,1.40521716,560.51,560.19,0.35702172]
[1741552307060,1.40521716,560.5,560.19,0.35702172]
[1741552307666,0.31067406,560.52,560.19,0.35702172]
[1741552307667,1.40521716,560.49,560.19,0.35702172]
[1741552308662,1.40521716,560.48,560.19,0.35702172]
[1741552309067,1.477,560.54,560.19,0.35702172]
[1741552309267,0.31066436,560.47,560.19,0.35702172]
[1741552309464,1.477,560.54,560.19,0.35702172]
[1741552310365,1.71734345,560.53,560.19,0.35702172]
[1741552310872,0.31064772,560.53,560.19,0.35702172]
[1741552311072,1.477,560.54,560.19,0.35702172]
[1741552311668,0.31064495,560.53,560.19,0.35702172]
[1741552313167,0.31064495,560.53,560.2,0.29560772]
[1741552313370,0.31064495,560.53,560.21,0.35700897]
[1741552314075,1.477,560.54,560.21,0.35700897]
[1741552314473,0.31054238,560.53,560.22,0.29548005]
[1741552314674,0.31054238,560.53,560.23,0.35699623]
[1741552317178,1.477,560.54,560.23,0.35699623]
[1741552318480,0.31056178,560.53,560.23,0.35699623]
[1741552320178,0.288,560.54,560.23,0.35699623]
[1741552320481,0.31050636,560.52,560.23,0.35699623]
[1741552322181,0.31050636,560.52,560.24,0.29551514]
[1741552322376,0.31050636,560.52,560.25,0.35698348]
[1741552322577,0.31050636,560.52,560.26,0.29551514]
[1741552322781,0.31050636,560.52,560.27,0.35697074]
[1741552322979,0.31050636,560.52,560.28,0.29551514]
[1741552323175,0.288,560.54,560.29,0.356958]
[1741552323382,0.288,560.54,560.3,0.29551514]
[1741552323582,0.288,560.54,560.31,0.35694526]
[1741552323882,0.288,560.54,560.32,0.29551514]
[1741552324277,0.31046619,560.53,560.32,0.29551514]
[1741552326177,0.288,560.54,560.32,0.29551514]
[1741552326382,0.31046619,560.52,560.33,0.35693252]
[1741552326582,0.288,560.54,560.33,0.35693252]
[1741552326882,0.288,560.54,560.34,0.29551514]
[1741552327083,0.288,560.54,560.35,0.35691978]
[1741552327382,0.288,560.54,560.36,0.29551514]
[1741552327586,0.288,560.54,560.37,0.35690704]
[1741552327779,0.288,560.54,560.38,0.29551514]
[1741552328183,0.288,560.54,560.39,0.3568943]
[1741552328379,0.288,560.54,560.4,0.29551514]
[1741552329983,0.288,560.54,560.41,0.35688156]
[1741552330378,0.288,560.54,560.42,0.29551514]
[1741552330579,0.288,560.54,560.43,0.35686883]
[1741552330779,0.288,560.54,560.44,0.29551514]
[1741552330979,0.288,560.54,560.43,0.35686883]
[1741552331280,0.288,560.54,560.44,0.29549464]
[1741552331784,0.288,560.54,560.43,0.35686883]
[1741552335083,0.784,560.59,560.43,0.35686883]
[1741552338187,0.784,560.59,560.44,0.2956758]
[1741552338389,0.784,560.59,560.45,0.35685609]
[1741552338589,0.784,560.59,560.46,0.2956758]
[1741552338782,0.784,560.59,560.47,0.35684336]
[1741552341085,0.784,560.59,560.48,0.29569119]
[1741552341291,0.784,560.59,560.49,0.35683063]
[1741552341490,0.784,560.59,560.5,0.29569119]
[1741552341686,0.288,560.78,560.49,0.35683063]
[1741552341993,0.288,560.78,560.5,0.29556925]
[1741552343493,0.288,560.78,560.49,0.35683063]
[1741552343787,0.288,560.78,560.5,0.29512286]
[1741552347290,0.288,560.78,560.51,0.29486334]
[1741552347491,0.288,560.78,560.52,0.29486334]
[1741552347798,0.288,560.78,560.53,0.29486334]
[1741552348096,0.288,560.78,560.54,0.29486334]
[1741552348297,0.288,560.78,560.5,0.29486334]
[1741552348491,0.288,560.78,560.51,0.29486334]
[1741552348698,0.288,560.78,560.5,0.29486334]
[1741552348896,0.288,560.78,560.51,0.29486334]
[1741552349096,0.288,560.78,560.52,0.2948529]
[1741552349298,0.288,560.78,560.5,0.2948529]
[1741552349492,0.288,560.78,560.51,0.2948529]
[1741552349693,0.288,560.78,560.5,0.2948529]
[1741552349898,0.288,560.78,560.49,0.35683063]
[1741552349899,0.288,560.78,560.51,0.2948529]
[1741552350198,0.288,560.78,560.52,0.2948529]
[1741552350498,0.288,560.78,560.53,0.2948529]
[1741552350698,0.288,560.78,560.5,0.2948529]
[1741552350893,0.288,560.78,560.51,0.2948529]
[1741552351094,0.288,560.78,560.5,0.2948529]
[1741552351298,0.288,560.78,560.52,0.2948529]
[1741552351499,0.288,560.78,560.53,0.2948529]
[1741552351699,0.288,560.78,560.5,0.2948529]
[1741552351999,0.288,560.78,560.51,0.65167079]
[1741552352199,0.288,560.78,560.52,0.2948529]
[1741552352401,0.288,560.78,560.53,0.2948529]
[1741552352697,0.288,560.78,560.54,0.2948529]
[1741552353199,0.288,560.78,560.55,0.2948529]
[1741552353395,0.288,560.78,560.51,0.35681789]
[1741552353396,0.288,560.78,560.56,0.2948529]
[1741552353699,0.288,560.78,560.57,0.2948529]
[1741552353899,0.288,560.78,560.58,0.2948529]
[1741552354096,0.288,560.78,560.59,0.2948529]
[1741552354296,0.288,560.78,560.52,0.2948529]
[1741552354501,0.288,560.78,560.53,0.2948529]
[1741552354702,0.288,560.78,560.54,0.2948529]
[1741552354901,0.288,560.78,560.55,0.2948529]
[1741552355095,0.288,560.78,560.56,0.2948529]
[1741552355299,0.288,560.78,560.57,0.2948529]
[1741552355600,0.288,560.78,560.58,0.2948529]
[1741552355797,0.288,560.78,560.52,0.2948529]
[1741552355996,0.288,560.78,560.53,0.2948529]
[1741552356203,0.288,560.78,560.54,0.65140137]
[1741552356398,0.288,560.78,560.55,0.29460257]
[1741552357104,0.288,560.78,560.56,0.35678607]
[1741552357310,0.288,560.78,560.57,0.29460257]
[1741552361407,0.288,560.78,560.58,0.29460257]
[1741552361610,0.288,560.78,560.59,0.29460257]
[1741552362008,0.288,560.78,560.6,0.29460257]
[1741552362203,0.288,560.78,560.61,0.29460257]
[1741552362712,0.288,560.78,560.62,0.29460257]
[1741552362902,0.288,560.78,560.63,0.29460257]
[1741552363102,0.288,560.78,560.64,0.29460257]
[1741552363302,0.834,560.85,560.65,0.29460257]
[1741552363709,0.834,560.85,560.66,0.29460257]
[1741552363904,0.834,560.85,560.67,0.29460257]
[1741552364108,0.834,560.85,560.68,0.29460257]
[1741552364309,0.834,560.85,560.56,0.35678607]
[1741552364310,0.834,560.85,560.69,0.29460257]
[1741552364507,0.834,560.85,560.7,0.29460257]
[1741552364907,0.834,560.85,560.71,0.29460257]
[1741552365106,0.834,560.85,560.72,0.29460257]
[1741552365314,0.834,560.85,560.73,0.29460257]
[1741552365606,0.834,560.85,560.74,0.29460257]
[1741552365803,0.834,560.85,560.75,0.29460257]
[1741552366003,0.834,560.85,560.76,0.29460257]
[1741552366209,0.834,560.85,560.77,0.29460257]
[1741552366410,0.834,560.85,560.78,0.29460257]
[1741552366609,0.834,560.85,560.79,0.29460257]
[1741552366805,0.834,560.85,560.57,0.29460257]
[1741552367009,0.834,560.85,560.58,0.29460257]
[1741552367205,0.834,560.85,560.59,0.29460257]
[1741552367410,0.834,560.85,560.6,0.29460257]
[1741552367605,0.834,560.85,560.56,0.35678607]
[1741552367606,0.834,560.85,560.61,0.29460257]
[1741552368106,0.834,560.85,560.62,0.29460257]
[1741552368411,0.834,560.85,560.63,0.29460257]
[1741552368611,0.834,560.85,560.64,0.29460257]
[1741552368812,0.834,560.85,560.65,0.29460257]
[1741552369011,0.834,560.85,560.66,0.29460257]
[1741552369310,0.834,560.85,560.56,0.35678607]
[1741552369311,0.834,560.85,560.67,0.29460257]
[1741552369511,0.834,560.85,560.68,0.29460257]
[1741552369711,0.834,560.85,560.69,0.29460257]
[1741552369907,0.834,560.85,560.56,0.35678607]
[1741552369908,0.834,560.85,560.57,0.29460257]
[1741552370107,0.834,560.85,560.58,0.29460257]
[1741552370311,0.834,560.85,560.59,0.29460257]
[1741552370506,0.834,560.85,560.6,0.29460257]
[1741552370711,0.288,561.11,560.61,0.29432389]
[1741552370911,0.288,561.11,560.62,0.29432389]
[1741552371108,0.288,561.11,560.63,0.29432389]
[1741552371313,0.288,561.11,560.64,0.29432389]
[1741552371614,0.288,561.11,560.65,0.29432389]
[1741552371815,0.288,561.11,560.66,0.29432389]
[1741552372014,0.288,561.11,560.67,0.29432389]
[1741552372211,0.288,561.11,560.68,0.29432389]
[1741552372416,0.288,561.11,560.57,0.29432389]
[1741552372618,0.288,561.11,560.58,0.29432389]
[1741552372817,0.288,561.11,560.57,0.29432389]
[1741552373018,0.288,561.11,560.58,0.29432389]
[1741552373417,0.288,561.11,560.59,0.29432389]
[1741552373616,0.288,561.11,560.56,0.35678607]
[1741552373617,0.288,561.11,560.57,0.29432389]
[1741552373816,0.288,561.11,560.58,0.29432389]
[1741552374020,0.81,561.1,560.57,0.29432389]
[1741552374314,0.81,561.1,560.58,0.29432389]
[1741552374511,0.81,561.1,560.57,0.29432389]
[1741552376017,0.81,561.1,560.58,0.29465239]
[1741552376217,0.81,561.1,560.57,0.29465239]
[1741552376513,0.81,561.1,560.58,0.29465239]
[1741552376717,0.81,561.1,560.59,0.29465239]
[1741552376914,0.81,561.1,560.57,0.29465239]
[1741552377119,0.81,561.1,560.58,0.65142573]
[1741552377320,0.81,561.1,560.59,0.29465239]
[1741552377622,0.81,561.1,560.6,0.35676061]
[1741552377823,0.81,561.1,560.61,0.29465239]
[1741552378122,0.81,561.1,560.62,0.35674788]
[1741552378323,0.81,561.1,560.63,0.29465239]
[1741552378524,0.81,561.1,560.64,0.35673515]
[1741552378723,0.81,561.1,560.65,0.29465239]
[1741552380327,0.81,561.1,560.66,0.35672243]
[1741552380624,0.81,561.1,560.67,0.29465239]
[1741552381424,0.81,561.1,560.68,0.3567097]
[1741552381624,0.81,561.1,560.69,0.29465239]
[1741552381825,0.81,561.1,560.7,0.35669698]
[1741552382018,0.81,561.1,560.71,0.29465239]
[1741552382425,0.81,561.1,560.72,0.35668426]
[1741552382626,0.81,561.1,560.73,0.29465239]
[1741552382825,0.81,561.1,560.74,0.35667154]
[1741552383019,0.81,561.1,560.75,0.29465239]
[1741552383524,0.81,561.1,560.76,0.35665882]
[1741552383725,0.81,561.1,560.77,0.29465239]
[1741552384027,0.81,561.1,560.78,0.3566461]